[Event "GER-ch Youth-U16 2022"]
[Site "Willingen"]
[Date "2022.06.07"]
[Round "4.3"]
[White "Laux, Dominik"]
[Black "Sidletskyi, Ivan"]
[Result "1-0"]
[ECO "B24"]
[WhiteElo "2263"]
[BlackElo "2084"]
[Annotator "TA"]
[PlyCount "125"]
[EventDate "2022.06.05"]
[EventType "swiss"]
[EventRounds "9"]
[EventCountry "GER"]
[SourceTitle "playchess.com"]
[Source "ChessBase"]
[SourceQuality "1"]
[TimeControl "40/4500+30:900+30"]

{[%evp 9,125,39,38,44,50,50,41,45,89,90,91,88,118,96,103,92,91,79,160,153,156,122,163,154,141,155,127,108,117,63,60,52,56,38,37,25,44,33,44,40,45,39,60,60,63,39,34,43,61,0,0,0,0,0,0,0,15,2,2,-10,-16,-18,-14,-27,-37,-61,-53,-112,-118,-114,-111,-121,-92,-111,-10,-19,-6,-56,0,-75,-79,-99,-99,-113,-85,-91,0,-122,-119,-110,-51,-100,-18,-11,48,48,48,48,48,48,48,48,48,0,0,0,0,0,338,330,289,291,291,286,238,0,267,243]} 1. e4 {[%emt 0:00:00]} c5 {[%emt 0:00:00]} 2. Nc3 {[%emt 0:00:00]} Nc6 {[%emt 0:00:00]} 3. Bb5 {[%emt 0:00:00]} e5 {[%emt 0:00:00]} 4. Nge2 {[%emt 0:00:00] [#]} g6 $146 {[%emt 0:00:00]} ({Predecessor:} 4... Bd6 5. a3 Nge7 6. Bc4 a6 7. O-O b5 8. Ba2 O-O 9. d3 Nd4 10. f4 Nxe2+ 11. Qxe2 exf4 {1-0 (39) Asis Gargatagli,H (2529)-Fluvia Poyatos,J (2493) Barcelona 2018}) 5. O-O {[%emt 0:00:00]} a6 {[%emt 0:12:04]} 6. Bxc6 {[%emt 0:00:09] B23: Closed Sicilian: Lines without g3.} dxc6 {[%emt 0:01:13]} 7. d3 {[%emt 0:01:35]} Bg7 {[%emt 0:06:50]} 8. f4 {[%emt 0:04:47] White is slightly better.} Ne7 {[%emt 0:03:53]} 9. Qe1 {[%emt 0:06:09]} exf4 {[%emt 0:04:45]} 10. Bxf4 {[%emt 0:07:55]} O-O {[%emt 0:11:53]} 11. Qh4 {[%emt 0:04:16] Inhibits Bg4.} b6 {[%emt 0:06:23]} 12. Bg5 {[%emt 0:05:40] Inhibits f6. White is more active.} Ra7 {[%emt 0:00:12]} 13. Rf3 {[%emt 0:05:31]} Be6 {[%emt 0:04:10]} (13... f6 $142) 14. Raf1 $16 {[%emt 0:06:38]} Qd7 {[%emt 0:02:46]} 15. h3 {[%emt 0:04:14]} Nc8 {[%emt 0:01:40]} 16. Bf6 {[%emt 0:03:12]} Nd6 {[%emt 0:03:55]} 17. Bxg7 {[%emt 0:06:51]} Kxg7 {[%emt 0:00:02]} 18. Qf6+ {[%emt 0:03:18]} Kg8 {[%emt 0:00:09]} 19. Nf4 {[%emt 0:02:59]} (19. e5 $16 Ne8 20. Qg5) 19... Ne8 $14 {[%emt 0:00:46]} 20. Qe5 {[%emt 0:00:48]} Ng7 {[%emt 0:01:46]} 21. Nce2 {[%emt 0:01:19]} Qe7 {[%emt 0:01:58]} 22. g4 {[%emt 0:04:38]} Bc8 {[%emt 0:00:43]} (22... Bxa2 $2 23. Qxe7 Rxe7 24. b3 $18) 23. Qc3 {[%emt 0:00:56]} Qg5 {[%emt 0:02:31]} 24. Kh2 {[%emt 0:02:10]} (24. Ng2 {seems wilder.} Ne6 25. Ne3 b5 26. Qf6) 24... Re7 {[%emt 0:01:02]} 25. b3 {[%emt 0:03:04]} Qe5 {[%emt 0:01:01]} 26. Qxe5 {[%emt 0:00:47]} Rxe5 {[%emt 0:00:02]} 27. Nc3 {[%emt 0:01:29]} b5 {[%emt 0:02:00]} 28. Kg3 {[%emt 0:01:05]} f5 {[%emt 0:02:21]} 29. gxf5 {[%emt 0:02:05]} (29. exf5 $14 gxf5 30. g5) 29... gxf5 $11 {[%emt 0:00:11]} 30. Ng2 {[%emt 0:01:09]} Rfe8 {[%emt 0:03:11]} 31. exf5 {[%emt 0:01:16]} Nxf5+ {[%emt 0:00:21]} 32. Kh2 {[%emt 0:00:11]} Nd4 {[%emt 0:02:02]} 33. Rg3+ {[%emt 0:01:31]} Kh8 {[%emt 0:00:05]} 34. Rf2 {[%emt 0:00:15]} Rf5 $36 {[%emt 0:02:47][%mdl 2048] Black has some pressure.} 35. Rxf5 {[%emt 0:02:39]} (35. Nf4 {feels hotter.} c4 36. bxc4 bxc4 37. Rg4) 35... Bxf5 {[%emt 0:00:12]} 36. Ne3 {[%emt 0:01:00]} Bg6 {[%emt 0:00:29]} 37. Kg2 {[%emt 0:00:27]} b4 {[%emt 0:02:00]} 38. Ne4 {[%emt 0:00:46]} ({Better is} 38. Na4 $15) 38... Bxe4+ $17 {[%emt 0:00:46]} 39. dxe4 {[%emt 0:00:03]} Rxe4 {[%emt 0:00:11][%cal Od4c2][%mdl 4096] Endgame KRN-KRN} 40. Kf2 {[%emt 0:00:29]} Re5 {[%emt 0:03:01] Prevents Rg5.} 41. Rg4 {[%emt 0:00:00]} Nb5 {[%emt 0:00:00]} (41... h6 $17 42. Rg6 h5) 42. Nc4 {[%emt 0:00:00]} Rf5+ {[%emt 0:00:00]} 43. Kg2 {[%emt 0:00:00]} (43. Kg3 $11) 43... Nd4 {[%emt 0:00:00]} (43... h5 $15 44. Re4 Rg5+ 45. Kf2 Kg7) 44. Re4 {[%emt 0:01:59]} (44. Nd6 $11 Rf8 45. Rg5) 44... Nxc2 {[%emt 0:04:36]} 45. Re8+ {[%emt 0:01:28]} Kg7 {[%emt 0:03:31]} 46. Ra8 {[%emt 0:00:13]} Rg5+ {[%emt 0:02:02]} 47. Kf2 {[%emt 0:00:32]} Rf5+ {[%emt 0:01:29]} (47... Nd4 $17) 48. Kg3 {[%emt 0:01:47]} (48. Kg2 $1 $11) 48... Nd4 {[%emt 0:01:07]} 49. Rxa6 {[%emt 0:00:12]} Rf1 {[%emt 0:01:35]} ({Black should play} 49... Kg6 $17 50. Nd2 h6) 50. Na5 {[%emt 0:02:24]} (50. Ra5 $15 {was preferrable.}) 50... Ra1 {[%emt 0:02:04]} (50... Kg6 $17) 51. Nxc6 $11 {[%emt 0:00:23]} Nxb3 {[%emt 0:04:37]} (51... Nxc6 $11 52. Rxc6 Rxa2) 52. Ra7+ $14 {[%emt 0:00:36]} Kf6 {[%emt 0:01:41] And now ...Nc1 would win.} 53. axb3 {[%emt 0:00:10] KRN-KR} Ra3 {[%emt 0:01:38]} 54. Rxh7 {[%emt 0:02:24]} Rxb3+ {[%emt 0:00:01]} 55. Kg4 {[%emt 0:00:58]} Rb1 {[%emt 0:01:28]} 56. Rb7 {[%emt 0:03:21]} (56. Na5 $1 $14) 56... b3 $11 {[%emt 0:01:23]} 57. Rb6 {[%emt 0:03:54] Strongly threatening Na5+.} b2 {[%emt 0:01:26] Hoping for ...Rg1+.} 58. Nd4+ {[%emt 0:00:44]} Ke5 $2 {[%emt 0:00:34][%mdl 8192]} (58... Kf7 $11 {and Black has nothing to worry.} 59. Ne2 c4) 59. Nf3+ $18 {[%emt 0:00:08]} Kd5 {[%emt 0:00:25] [#]} 60. Nd2 {[%emt 0:01:58]} Rg1+ {[%emt 0:00:10]} 61. Kf4 {[%emt 0:03:41]} (61. Kh4 $6 c4 62. Rxb2 (62. Rb5+ Ke6 $11) 62... Rd1 $18) 61... Rh1 {[%emt 0:00:22] [#]} 62. Kg4 $2 {[%emt 0:01:10]} (62. Kg3 $1 $18) 62... c4 $2 {[%emt 0:00:27][%mdl 8192]} (62... Rg1+ $11 {and Black is okay.} 63. Kf3 (63. Kh4 c4 $18) 63... c4 64. Rxb2 (64. Rb5+ Ke6 $11) 64... c3) 63. Rxb2 {Weighted Error Value: White=0.21 (precise) /Black=0.40} ({Stronger than} 63. Rb5+ Ke6 64. Rb6+ (64. Nxc4 b1=Q $11) (64. Rxb2 c3 $11) 64... Kf7 65. Rb7+ (65. Nxc4 b1=Q $11) (65. Rxb2 c3 $11) 65... Kg6 66. Rb6+ (66. Nxc4 b1=Q $11) (66. Rxb2 Rg1+ 67. Kf3 c3 $11) 66... Kf7 67. Rxb2 (67. Rb7+ Kg6 $11) 67... c3 $11) 1-0

[Event "GER-ch Youth-U16 2022"]
[Site "Willingen"]
[Date "2022.06.07"]
[Round "4.5"]
[White "Albert, Markus"]
[Black "Trushko, Andrii"]
[Result "0-1"]
[ECO "B10"]
[WhiteElo "2053"]
[BlackElo "1897"]
[Annotator "TA"]
[PlyCount "88"]
[EventDate "2022.06.05"]
[EventType "swiss"]
[EventRounds "9"]
[EventCountry "GER"]
[SourceTitle "playchess.com"]
[Source "ChessBase"]
[SourceQuality "1"]
[TimeControl "40/4500+30:900+30"]

{[%evp 9,88,35,33,36,41,37,35,33,38,37,45,37,33,32,28,30,29,21,40,39,55,42,74,2,2,0,0,0,18,16,10,0,14,3,3,0,0,-16,0,-27,-27,-27,-27,-35,-16,-52,-56,-99,-99,-99,-99,-99,-99,-101,-101,-137,-135,-183,-179,-163,-166,-381,-381,-500,-685,-550,-393,-1239,-1181,-1166,-1164,-1102,-1095,-3326,-3135,-6079,-5908,-5343,-2173,-3604,-2738]} 1. e4 {[%emt 0:00:00]} c6 {[%emt 0:00:00]} 2. Nf3 {[%emt 0:00:00]} d5 {[%emt 0:00:00]} 3. d3 {[%emt 0:00:00]} d4 {[%emt 0:00:00]} 4. g3 {[%emt 0:00:00]} c5 {[%emt 0:00:00]} 5. Bg2 {[%emt 0:00:00]} Nc6 {[%emt 0:00:00] [#]} 6. e5 $146 {[%emt 0:00:00] B10: Caro-Kann: 2 d3 and 2 c4.} ({Predecessor:} 6. O-O e5 7. a4 Bd6 8. h3 f6 9. Na3 Be6 10. Ne1 Nge7 11. f4 Qd7 12. f5 {0-1 (41) Gregoric,A (1948)-Trushko,A (2222) Rhodes 2022}) 6... Bg4 {[%emt 0:00:00]} 7. h3 {[%emt 0:00:00]} Bxf3 {[%emt 0:00:00]} ({Not} 7... Qa5+ 8. Nbd2 Bh5 9. g4 $16) 8. Qxf3 {[%emt 0:00:00] White is slightly better.} e6 {[%emt 0:00:00]} 9. O-O {[%emt 0:00:00]} Nge7 {[%emt 0:00:00]} 10. Nd2 {[%emt 0:00:00]} Nd5 {[%emt 0:00:00]} 11. Qe2 {[%emt 0:00:00]} Be7 {[%emt 0:00:00]} 12. Nc4 {[%emt 0:00:00]} Qd7 {[%emt 0:06:11]} 13. a4 {[%emt 0:00:00]} Rd8 {[%emt 0:08:55]} 14. f4 {[%emt 0:00:00]} O-O {[%emt 0:03:45]} 15. g4 {[%emt 0:00:00]} f6 {[%emt 0:00:26]} 16. Bd2 {[%emt 0:00:00]} (16. exf6 $1 $16 Rxf6 17. g5) 16... fxe5 $11 {[%emt 0:01:13]} 17. fxe5 {[%emt 0:00:33]} Rxf1+ {[%emt 0:02:08]} (17... Ncb4 {is more complex.} 18. c3 Nc2 19. Rac1 Nde3) 18. Rxf1 {[%emt 0:00:20][%cal Oh3h4]} Rf8 {[%emt 0:00:12]} 19. Rxf8+ {[%emt 0:03:45]} Bxf8 {[%emt 0:00:10]} 20. Be4 {[%emt 0:00:40]} Qd8 {[%emt 0:03:12]} 21. Qf3 {[%emt 0:00:33]} g6 {[%emt 0:01:15]} 22. Bf4 {[%emt 0:02:26]} Ncb4 {[%emt 0:02:55][%cal Bc6b4,Bb4c2,Bc2e3][%mdl 32]} 23. Qf2 {[%emt 0:02:50]} Qd7 {[%emt 0:04:45]} (23... Nxf4 {feels hotter.} 24. Qxf4 Nxc2 25. Nd6 Qe7) 24. b3 {[%emt 0:06:26]} Nxf4 {[%emt 0:09:37]} 25. Qxf4 {[%emt 0:00:25]} Nxc2 {[%emt 0:00:43]} 26. h4 {[%emt 0:01:20][%cal Bh3h4,Bh4h5][%mdl 32]} b6 {[%emt 0:03:32]} 27. h5 {[%emt 0:02:34]} Qf7 {[%emt 0:02:57]} 28. Qd2 {[%emt 0:01:12] White is now going downhill.} Ne3 $1 {[%emt 0:00:10]} 29. Nxe3 {[%emt 0:00:43]} Bh6 {[%emt 0:00:07][%mdl 64] Pin} 30. hxg6 {[%emt 0:02:04]} hxg6 {[%emt 0:00:08]} 31. Qe1 {[%emt 0:01:13] Black must now prevent Nc4.} dxe3 $17 {[%emt 0:01:32][%mdl 4096] Endgame KQB-KQB} 32. Kg2 {[%emt 0:02:16]} Bf4 {[%emt 0:01:05]} 33. Qh4 {[%emt 0:03:26]} (33. Qf1 $17) 33... Bxe5 $19 {[%emt 0:03:21]} 34. Bf3 {[%emt 0:01:23]} Kg7 {[%emt 0:04:04]} 35. Qg5 $2 {[%emt 0:03:47] [#]} (35. Be4) 35... Bf4 $1 {[%emt 0:03:21]} 36. Qd8 {[%emt 0:02:17] [#]} Qf6 $1 {[%emt 0:06:57]} 37. Qxf6+ {[%emt 0:01:55]} Kxf6 {[%emt 0:00:05] KB-KB} 38. Bc6 $2 {[%emt 0:00:44]} (38. Bd1 Ke5 39. Kf1) 38... Ke5 {[%emt 0:00:06] Black is clearly winning.} 39. Kf3 {[%emt 0:00:25] [#]} Kd4 $1 {[%emt 0:00:11]} 40. Bb5 {[%emt 0:13:18] [#]} (40. Ke2 Kc3) 40... Kc3 $1 {[%emt 0:01:18]} 41. d4 {[%emt 0:18:02] [#]} (41. a5 Kd2) 41... cxd4 $1 {[%emt 0:15:24][%cal Od4d3] ( -> ...d3!)} 42. Kxf4 {[%emt 0:00:41]} (42. Ke2 g5) 42... Kd2 {[%emt 0:00:46] Strongly threatening ...d3.} 43. Ke4 {[%emt 0:00:11] Against d3} e5 {[%emt 0:00:29]} 44. g5 {[%emt 0:04:25]} e2 {[%emt 0:00:15] Weighted Error Value: White=0.68/Black=0.03 (flawless)} 0-1

[Event "GER-ch Youth-U16 2022"]
[Site "Willingen"]
[Date "2022.06.07"]
[Round "4.6"]
[White "Foerster-Yialamas, Lucas"]
[Black "Chassard, Cedric"]
[Result "1/2-1/2"]
[ECO "C77"]
[WhiteElo "2117"]
[BlackElo "2051"]
[Annotator "TA"]
[PlyCount "74"]
[EventDate "2022.06.05"]
[EventType "swiss"]
[EventRounds "9"]
[EventCountry "GER"]
[SourceTitle "playchess.com"]
[Source "ChessBase"]
[SourceQuality "1"]
[TimeControl "40/4500+30:900+30"]

{[%evp 20,74,0,-10,22,0,0,6,7,0,6,0,0,0,7,0,0,8,0,-13,18,0,6,8,3,0,4,0,-14,-12,-7,-19,2,-6,12,0,33,-4,20,-75,-75,-75,-73,-76,-75,-92,-98,-97,0,0,0,0,0,0,0,0,4]} 1. e4 {[%emt 0:00:00]} e5 {[%emt 0:00:00][%cal Be7e5,Be5d4][%mdl 32]} 2. Nf3 {[%emt 0:00:00]} Nc6 {[%emt 0:00:00]} 3. Bb5 {[%emt 0:00:00]} a6 {[%emt 0:00:00]} 4. Ba4 {[%emt 0:00:00]} Nf6 {[%emt 0:00:00]} 5. d4 {[%emt 0:00:00]} exd4 {[%emt 0:00:00]} 6. O-O {[%emt 0:00:00]} Be7 {[%emt 0:00:00]} 7. Re1 {[%emt 0:00:00]} b5 {[%emt 0:00:00]} 8. e5 {[%emt 0:00:00]} Nxe5 {[%emt 0:10:12]} 9. Nxe5 {[%emt 0:00:00]} bxa4 {[%emt 0:00:17]} 10. Qxd4 {[%emt 0:00:00]} O-O {[%emt 0:01:21]} 11. Qxa4 {[%emt 0:00:00]} Bd6 {[%emt 0:10:51] [#] C84: Closed Ruy Lopez: Unusual White 6th moves.} 12. Qb3 $146 {[%emt 0:00:00]} ({Predecessor:} 12. Nd3 Re8 13. Rxe8+ Qxe8 14. Nc3 Bb7 15. Bg5 Nd5 16. Re1 Qc8 17. Ne4 Bc6 18. Qd4 Bf8 19. a3 {1-0 (62) Grischenko,K (1991)-Meylani,I (1309) Antalya 2019}) 12... Bxe5 {[%emt 0:02:13]} 13. Rxe5 {[%emt 0:00:00]} d6 {[%emt 0:03:34]} 14. Re1 {[%emt 0:00:00]} Re8 {[%emt 0:02:03][%cal Re8e1]} 15. Be3 {[%emt 0:01:20]} Ng4 {[%emt 0:03:43] aiming for ...Qh4.} 16. Nd2 {[%emt 0:00:49][%cal Oe3g5]} Be6 {[%emt 0:02:09]} 17. Qd3 {[%emt 0:01:42]} Qf6 {[%emt 0:06:36]} 18. Bd4 {[%emt 0:01:41]} Qf4 {[%emt 0:05:07]} 19. g3 {[%emt 0:04:12]} Qf5 {[%emt 0:06:06]} 20. f3 {[%emt 0:05:58] Threatens to win with Qxf5.} Qxd3 {[%emt 0:02:44]} 21. cxd3 {[%emt 0:00:02]} Nh6 {[%emt 0:00:34][%cal Bg4h6,Bh6f7,Bf7e5][%mdl 32]} 22. g4 {[%emt 0:01:05]} f6 {[%emt 0:00:47]} 23. h3 {[%emt 0:03:18]} (23. Rac1 $5 {[%cal Rc1c7]}) 23... Nf7 {[%emt 0:03:12]} 24. Re3 {[%emt 0:12:39]} Bd5 {[%emt 0:03:36]} 25. Ne4 {[%emt 0:02:23]} Ne5 {[%emt 0:03:51]} 26. b3 {[%emt 0:03:18]} Kf7 {[%emt 0:03:10][%cal Bg8f7,Bf7e8,Be8d7,Bd7c6,Bc6d6][%mdl 32]} 27. Rc1 {[%emt 0:05:11]} Re7 {[%emt 0:00:45]} 28. Kf2 {[%emt 0:02:39]} (28. Bxe5 $5 dxe5 29. Re2 $11) 28... Ke8 {[%emt 0:02:26]} 29. f4 {[%emt 0:01:48] [#]} (29. Bxe5 $11 fxe5 30. Rce1) 29... Nxd3+ $1 $17 {[%emt 0:01:12]} 30. Rxd3 {[%emt 0:00:07] Strongly threatening Nc3.} Bxe4 {[%emt 0:00:19]} 31. Re3 {[%emt 0:00:16]} Kd7 {[%emt 0:01:53]} 32. Rec3 c5 {[%emt 0:01:21]} 33. Be3 {[%emt 0:08:45]} a5 {[%emt 0:01:18]} (33... f5 $17 34. Rd1 Ke6 35. gxf5+ Bxf5) 34. Rd1 $1 $11 {[%emt 0:02:25] The position is equal.} Kc6 {[%emt 0:01:11]} 35. Rxd6+ $1 {[%emt 0:02:13][%mdl 64] [#] Remove Defender, Decoy} Kxd6 {[%emt 0:01:11]} 36. Bxc5+ {[%emt 0:00:02]} Kd7 {[%emt 0:02:22]} 37. Bxe7 {[%emt 0:00:07]} Bb1 $1 {[%emt 0:01:55] Weighted Error Value: White=0.13 (very precise) /Black=0.14 (very precise)} ({Don't play} 37... Kxe7 38. Re3 $16) 1/2-1/2

[Event "GER-ch Youth-U16 2022"]
[Site "Willingen"]
[Date "2022.06.07"]
[Round "4.7"]
[White "Jaskulski, Jan"]
[Black "Lerchl, Clemens"]
[Result "1-0"]
[ECO "B76"]
[WhiteElo "1727"]
[BlackElo "1843"]
[Annotator "NA RC COMBH"]
[PlyCount "63"]
[EventDate "2022.06.05"]
[EventType "swiss"]
[EventRounds "9"]
[EventCountry "GER"]
[SourceTitle "playchess.com"]
[Source "ChessBase"]
[SourceQuality "1"]
[TimeControl "40/4500+30:900+30"]

1. e4 {[%emt 0:00:00]} c5 {[%emt 0:00:00]} 2. Nf3 {[%emt 0:00:00]} d6 {[%emt 0:00:00]} 3. d4 {[%emt 0:00:00]} cxd4 {[%emt 0:00:00]} 4. Nxd4 {[%emt 0:00:00]} Nf6 {[%emt 0:00:00]} 5. Nc3 {[%emt 0:00:00]} g6 {[%emt 0:00:00]} 6. Be3 {[%emt 0:00:00]} Bg7 {[%emt 0:00:00]} 7. f3 {[%emt 0:00:00]} O-O {[%emt 0:00:00]} 8. Qd2 {[%emt 0:00:00]} Nc6 {[%emt 0:00:00]} 9. O-O-O {[%emt 0:00:00]} d5 {[%emt 0:00:00]} 10. exd5 {[%emt 0:00:00]} Nxd5 {[%emt 0:00:00]} 11. Nxc6 {[%emt 0:00:00]} bxc6 {[%emt 0:00:00]} 12. Bd4 {[%emt 0:00:00]} e5 {[%emt 0:00:00]} 13. Bc5 {[%emt 0:00:00]} Be6 {[%emt 0:00:00] 13...Re8 might become the main line.} 14. Ne4 {[%emt 0:00:00]} Re8 {[%emt 0:00:00]} 15. h4 {[%emt 0:00:00]} Qc7 {[%emt 0:00:00]} 16. h5 {[%emt 0:08:53]} Red8 {[%emt 0:00:00]} 17. hxg6 {[%emt 0:14:56]} hxg6 {[%emt 0:00:00]} 18. Qg5 {[%emt 0:05:43]} Nf4 {[%emt 0:06:51]} 19. Rxd8+ {[%emt 0:14:09]} Qxd8 {[%emt 0:00:22]} 20. Be7 {[%emt 0:00:08] [#]} Qa5 $146 {[%emt 0:00:03]} ({Predecessor:} 20... Qd4 21. Nf6+ Bxf6 22. Qxf6 Qe3+ 23. Kd1 Qd4+ 24. Bd3 Nh5 25. Rxh5 Qg1+ 26. Kd2 Qf2+ {0-1 (60) Franco,V-Sarki,J Dos Hermanas 2003}) 21. Qh4 {[%emt 0:04:35]} f5 {[%emt 0:04:29]} 22. Ng5 {[%emt 0:02:05]} Bh6 {[%emt 0:15:56]} 23. b3 {[%emt 0:03:12]} Qxa2 {[%emt 0:15:02]} (23... Nh5 $18) 24. Qxh6 {[%emt 0:00:53]} Qa1+ {[%emt 0:00:07]} 25. Kd2 {[%emt 0:00:13]} Qa5+ {[%emt 0:00:03]} 26. c3 {[%emt 0:15:13]} Qa2+ {[%emt 0:06:29]} 27. Ke1 {[%emt 0:00:11]} Nxg2+ {[%emt 0:07:52]} 28. Bxg2 {[%emt 0:00:08]} Qb1+ {[%emt 0:00:08]} 29. Kf2 {[%emt 0:00:18]} Qc2+ {[%emt 0:00:04]} 30. Kg3 {[%emt 0:00:44]} f4+ {[%emt 0:00:19]} 31. Kh2 {[%emt 0:00:11]} Qf2 {[%emt 0:00:29]} 32. Qh7# {[%emt 0:00:06]} 1-0

[Event "GER-ch Youth-U16 2022"]
[Site "Willingen"]
[Date "2022.06.07"]
[Round "4.8"]
[White "Metzdorf, Matteo"]
[Black "Hommer, Jeremy"]
[Result "1/2-1/2"]
[ECO "B10"]
[WhiteElo "2009"]
[BlackElo "2152"]
[Annotator "TA"]
[PlyCount "45"]
[EventDate "2022.06.05"]
[EventType "swiss"]
[EventRounds "9"]
[EventCountry "GER"]
[SourceTitle "playchess.com"]
[Source "ChessBase"]
[SourceQuality "1"]
[TimeControl "40/4500+30:900+30"]

{[%evp 10,45,23,25,22,0,33,27,27,29,24,30,50,32,36,20,26,19,42,35,62,50,49,27,80,85,83,85,88,0,0,0,0,0,0,0,0,8]} 1. e4 {[%emt 0:00:00]} c6 {[%emt 0:00:00]} 2. Nc3 {[%emt 0:00:00]} d5 {[%emt 0:00:00]} 3. Nf3 {[%emt 0:00:00]} dxe4 {[%emt 0:00:00]} 4. Nxe4 {[%emt 0:00:00]} Nf6 {[%emt 0:00:00]} 5. Qe2 {[%emt 0:00:00]} Nxe4 {[%emt 0:00:00]} 6. Qxe4 {[%emt 0:00:00]} Qd5 {[%emt 0:00:00] B11: Caro-Kann: Two Knights Variation.} 7. Qh4 {[%emt 0:10:58]} Qf5 {[%emt 0:00:00]} 8. c3 {[%emt 0:06:31]} Qg4 {[%emt 0:00:00] White has an edge.} 9. d4 {[%emt 0:03:54]} Qxh4 {[%emt 0:00:00]} 10. Nxh4 {[%emt 0:00:08] [#]} g6 $146 {[%emt 0:00:00]} ({Predecessor:} 10... Nd7 11. Bd3 e5 12. Be3 g6 13. dxe5 Nxe5 14. Be2 Be7 15. Nf3 Nxf3+ 16. Bxf3 O-O {½-½ (69) Maltsevskaya,A (2406)-Mkrtchyan,M (2300) Chess.com INT 2022}) 11. Bc4 {[%emt 0:05:23]} Nd7 {[%emt 0:00:41][%cal Bb8d7,Bd7b6,Bb6d5,Bd5b4,Bb4d3][%mdl 32]} 12. Nf3 {[%emt 0:08:39][%cal Bh4f3,Bf3d2,Bd2e4][%mdl 32]} Nb6 {[%emt 0:00:35]} 13. Bb3 {[%emt 0:03:33]} f6 {[%emt 0:24:26]} 14. O-O {[%emt 0:17:16]} e6 {[%emt 0:00:45]} 15. Re1 {[%emt 0:02:18]} Kf7 {[%emt 0:00:16]} 16. Nd2 {[%emt 0:09:24]} Bd7 {[%emt 0:15:32]} (16... Nd5 $11 {remains equal.}) 17. Ne4 $16 {[%emt 0:01:07]} Nd5 {[%emt 0:07:56]} 18. c4 {[%emt 0:03:54]} Nb4 {[%emt 0:02:07]} 19. a3 {[%emt 0:02:18] White is more active.} ({White should play} 19. Bd2 $16) 19... Nd3 $11 {[%emt 0:00:41] The position is equal.} 20. Rd1 {[%emt 0:00:47]} Nxc1 {[%emt 0:00:23]} 21. Raxc1 {[%emt 0:00:03]} Be7 {[%emt 0:06:49]} 22. d5 {[%emt 0:01:52]} f5 {[%emt 0:00:44]} 23. d6 {[%emt 0:01:03] Weighted Error Value: White=0.11 (very precise) /Black=0.10 (very precise)} 1/2-1/2

[Event "GER-ch Youth-U16 2022"]
[Site "Willingen"]
[Date "2022.06.07"]
[Round "4.9"]
[White "Stork, Christopher"]
[Black "Bui, Bao Anh Le"]
[Result "1/2-1/2"]
[ECO "B90"]
[WhiteElo "1994"]
[BlackElo "2127"]
[Annotator "TA"]
[PlyCount "54"]
[EventDate "2022.06.05"]
[EventType "swiss"]
[EventRounds "9"]
[EventCountry "GER"]
[SourceTitle "playchess.com"]
[Source "ChessBase"]
[SourceQuality "1"]
[TimeControl "40/4500+30:900+30"]

{[%evp 9,54,29,29,15,37,27,19,9,35,29,32,-22,-37,-51,-45,-60,-46,-65,-28,-107,-88,-73,-20,-18,-20,-48,3,-11,-11,-8,-12,-12,7,-20,-22,-48,-23,-41,-41,-41,-42,-46,-45,-47,-25,-32,-21]} 1. e4 {[%emt 0:00:00]} c5 {[%emt 0:00:00]} 2. Nf3 {[%emt 0:00:00]} d6 {[%emt 0:00:00]} 3. d4 {[%emt 0:00:00]} cxd4 {[%emt 0:00:00]} 4. Nxd4 {[%emt 0:00:00]} Nf6 {[%emt 0:00:00]} 5. Nc3 {[%emt 0:00:00]} a6 {[%emt 0:00:00]} 6. Qd3 {[%emt 0:00:00] B90: Sicilian Najdorf: Unusual White 6th moves, 6 Be3 Ng4 and 6 Be3 e5.} g6 {[%emt 0:00:00]} 7. Bg5 {[%emt 0:00:00]} Bg7 {[%emt 0:00:00]} 8. O-O-O {[%emt 0:00:00] The position is equal.} Nbd7 {[%emt 0:03:54]} 9. f4 {[%emt 0:00:00]} Qc7 {[%emt 0:10:47] [#]} 10. h3 $146 {[%emt 0:00:00]} (10. Qc4 $14 Qxc4 11. Bxc4) ({Predecessor:} 10. Be2 h6 11. Bxf6 Nxf6 12. f5 g5 13. h4 g4 14. Nd5 Nxd5 15. exd5 h5 16. Rhf1 {½-½ (63) Vaishali,R (2405)-Aronian,L (2782) Kolkata 2021}) 10... b5 $11 {[%emt 0:13:50]} 11. g4 {[%emt 0:08:33]} Bb7 {[%emt 0:09:53] Threatens to win with ...b4.} 12. Bg2 {[%emt 0:04:53]} Rc8 {[%emt 0:00:40] And now ...b4 would win.} 13. Rd2 {[%emt 0:09:18]} Qc4 {[%emt 0:03:14] Inhibits Nd5.} 14. Nb3 {[%emt 0:08:55]} (14. Qxc4 $11 Rxc4 15. Re1) 14... Qxd3 $17 {[%emt 0:21:10]} 15. Rxd3 {[%emt 0:00:20] [#]} Nc5 {[%emt 0:04:06]} ({Better is} 15... h5 $1 $17 16. Bxf6 Bxf6) 16. Nxc5 $11 {[%emt 0:02:04]} Rxc5 {[%emt 0:00:11]} 17. Re1 {[%emt 0:05:14][%cal Oe4e5] e5! is the strong threat.} O-O {[%emt 0:07:55]} (17... Nd7 $1 $15) 18. Rd2 {[%emt 0:06:11]} b4 {[%emt 0:05:21]} 19. Nd5 {[%emt 0:01:20]} Bxd5 {[%emt 0:00:13]} 20. exd5 {[%emt 0:03:19]} Rc7 {[%emt 0:01:11]} 21. Bxf6 {[%emt 0:10:31]} Bxf6 {[%emt 0:00:25]} 22. Re4 {[%emt 0:00:59]} Rb8 {[%emt 0:01:07]} 23. Kb1 {[%emt 0:03:01]} h6 {[%emt 0:00:26]} 24. Bf1 {[%emt 0:00:48]} a5 {[%emt 0:00:16]} 25. Rc4 {[%emt 0:02:35]} Rxc4 {[%emt 0:01:02]} 26. Bxc4 {[%emt 0:00:06]} a4 {[%emt 0:00:14]} 27. Re2 {[%emt 0:01:00]} Kg7 {[%emt 0:01:46] Weighted Error Value: White=0.21 (precise) /Black=0.12 (very precise)} 1/2-1/2